bitfinex-derivatives/quotes_ETHF0:USTF0_20250316
["timestamp","ask_amount","ask_price","bid_price","bid_amount"]
[1742091939937,0.6974,1922.4,1922.2,1.04041]
[1742091940142,0.6976,1922.3,1922.0,1.3902]
[1742091940337,1.738,1922.3,1922.1,1.04048]
[1742091940834,0.6976,1922.3,1922.2,1.04045]
[1742091942642,4.94579,1922.3,1921.8,5.80944]
[1742091942945,4.94579,1922.3,1922.2,1.04045]
[1742091944844,3.9054,1922.3,1922.2,1.04045]
[1742091946242,3.2078,1922.3,1922.2,1.04045]
[1742091946647,0.6974,1922.4,1922.3,1.04039]
[1742091946845,4.94554,1922.4,1922.3,1.04039]
[1742091947047,3.9052,1922.4,1922.3,1.04039]
[1742091949338,0.6974,1922.4,1922.3,1.04039]
[1742091949646,3.9052,1922.4,1922.3,1.04039]
[1742091949848,0.6974,1922.4,1922.3,1.04039]
[1742091950349,0.0078184,1922.5,1922.4,1.04034]
[1742091951346,0.0078184,1922.5,1922.4,2.35444]
[1742091952447,0.0078184,1922.5,1922.4,3.05654]
[1742091957139,0.0078184,1922.5,1922.4,6.26434]
[1742091958051,0.7062,1922.9,1922.8,1.04012]
[1742091958251,2.0195,1922.9,1922.8,1.04012]
[1742091958947,2.0195,1922.9,1922.8,2.42472]
[1742091961856,2.0195,1922.9,1922.8,1.3846]
[1742091962052,2.0195,1922.9,1922.8,2.42472]
[1742091964053,2.0195,1922.9,1922.8,1.3846]
[1742091964250,3.05957,1922.9,1922.7,1.04015]
[1742091964449,3.15145,1922.8,1922.6,2.4335]
[1742091964654,1.4022,1922.7,1922.6,2.4335]
[1742091967246,1.4022,1922.7,1922.6,1.0402]
[1742091967843,1.4022,1922.7,1922.6,2.3825]
[1742091968558,2.44238,1922.7,1922.6,1.3423]
[1742091968757,2.44238,1922.7,1922.6,2.38253]
[1742091969058,1.4022,1922.7,1922.6,2.38253]
[1742091970150,6.64005668,1922.8,1922.7,1.04018]
[1742091970151,2.01290093,1922.8,1922.7,1.04018]
[1742091970347,1.05723757,1922.8,1922.7,2.38448]
[1742091970547,1.3385,1922.9,1922.8,1.04012]
[1742091970748,1.3385,1922.9,1922.8,2.38442]
[1742091970944,3.35140093,1922.9,1922.8,2.38442]
[1742091971149,2.39573757,1922.9,1922.8,2.38442]
[1742091971857,1.3385,1922.9,1922.8,2.38442]
[1742091972249,0.0078184,1923.0,1922.9,1.04007]
[1742091972453,0.0078184,1923.0,1922.9,7.08047]
[1742091973157,0.0078184,1923.0,1922.9,3.87267]
[1742091973549,0.0078184,1923.0,1922.9,7.08047]
[1742091974058,0.00260611,1923.0,1922.9,7.08047]
[1742091981059,0.00260611,1923.0,1922.9,3.87267]
[1742091981861,1.36840611,1923.0,1922.9,3.87267]
[1742091983263,0.00260611,1923.0,1922.9,3.87267]
[1742091984649,0.00260611,1923.0,1922.9,3.19057]
[1742091986160,0.00260611,1923.0,1922.9,6.39837]
[1742091986567,5.2649,1923.4,1923.3,1.03985]
[1742091986861,2.0571,1923.4,1923.3,1.03985]
[1742091987064,1.349,1923.4,1923.3,1.03985]
[1742091987462,1.349,1923.4,1923.3,2.47375]
[1742091988368,1.3383184,1923.5,1923.4,1.0398]
[1742091988666,1.3383184,1923.5,1923.4,2.4737]
[1742091991371,0.0078184,1923.5,1923.4,2.4737]
[1742091992070,1.4433,1923.8,1923.7,1.03964]
[1742091992273,1.3616,1923.9,1923.8,1.03958]
[1742091992470,0.6554,1923.9,1923.8,3.09468]
[1742091992768,1.69493,1923.9,1923.7,1.03961]
[1742091992971,2.48289,1923.8,1923.6,5.80066]
[1742091993270,1.3089,1923.7,1923.6,5.80845788]
[1742091993472,1.9959,1923.7,1923.6,5.80845788]
[1742091993879,1.9959,1923.7,1923.6,2.40145788]
[1742091994470,4.2758051,1924.0,1923.6,1.36179788]
[1742091994665,1.3089,1923.9,1923.8,1.03958]
[1742091994866,1.3089,1923.9,1923.8,2.46878]
[1742091995378,1.3089,1923.9,1923.8,3.15718]
[1742091998374,1.3089,1923.9,1923.8,1.03958]
[1742091999979,1.3089,1923.9,1923.8,2.41138]
[1742092000880,0.00779788,1924.0,1923.9,1.03953]
[1742092001082,0.00779788,1924.0,1923.9,1.75283]
[1742092001288,0.00779788,1924.0,1923.9,1.03953]
[1742092001781,0.00779788,1924.0,1923.9,2.41133]
[1742092002277,1.42269788,1924.0,1923.9,2.41133]
[1742092003582,1.42269788,1924.0,1923.9,1.03953]
[1742092003782,1.42269788,1924.0,1923.9,2.41073]
[1742092004686,1.42269788,1924.0,1923.9,1.03953]
[1742092006984,1.42269788,1924.0,1923.8,1.3712]
[1742092007284,1.42269788,1924.0,1923.9,1.03953]
[1742092009881,1.42269788,1924.0,1923.6,6.62259788]
[1742092009882,1.03962,1923.8,1923.6,3.21559788]
[1742092010077,2.6941,1923.7,1923.6,4.25523788]
[1742092010274,3.73374,1923.7,1923.6,4.25528788]
[1742092010582,6.94154,1923.7,1923.6,0.00779788]
[1742092015282,6.94154,1923.7,1923.6,1.41659788]
[1742092015483,6.94154,1923.7,1923.6,2.45628788]
[1742092015683,6.94154,1923.7,1923.6,1.41659788]
[1742092017688,6.94154,1923.7,1923.6,0.00779788]
[1742092019282,1.03975,1923.5,1923.4,1.3536]
[1742092019992,1.03975,1923.5,1923.4,2.3934]
[1742092020488,1.402,1923.5,1923.4,2.3934]
[1742092020792,2.44175,1923.5,1923.4,2.3934]
[1742092020987,1.402,1923.5,1923.4,2.3934]
[1742092021286,2.44175,1923.5,1923.4,2.3934]
[1742092021786,1.402,1923.5,1923.4,2.3934]
[1742092022797,2.44175,1923.5,1923.4,1.3536]
[1742092023496,2.44175,1923.5,1923.4,2.3934]
[1742092024096,1.05919212,1923.6,1923.5,1.03975]
[1742092024307,1.05919212,1923.6,1923.5,3.14355]
[1742092024793,1.3634,1923.6,1923.5,3.14355]
[1742092025195,4.26699212,1923.7,1923.6,1.03969]
[1742092025402,3.2078,1923.7,1923.6,3.13169]
[1742092025893,4.5712,1923.7,1923.6,3.13169]
[1742092026295,3.2078,1923.7,1923.6,3.13169]
[1742092026789,2.42259212,1923.9,1923.8,1.03958]
[1742092026985,1.3634,1923.9,1923.8,1.03958]
[1742092027396,1.3634,1923.9,1923.8,1.73898]
[1742092027690,2.40293,1923.9,1923.8,0.6994]
[1742092028091,2.40293,1923.9,1923.8,2.0624]
[1742092028802,1.3634,1923.9,1923.8,3.10198]
[1742092031102,0.00779788,1924.0,1923.9,1.03953]
[1742092031301,0.00779788,1924.0,1923.9,2.43443]
[1742092031302,1.43009788,1924.0,1923.9,2.43443]
[1742092032602,2.46957788,1924.0,1923.9,1.3949]
[1742092032801,1.43009788,1924.0,1923.9,2.43443]
[1742092034306,2.46957788,1924.0,1923.9,1.3949]
[1742092035104,2.46957788,1924.0,1923.9,2.43443]
[1742092035609,1.43009788,1924.0,1923.9,2.43443]
[1742092036109,2.46957788,1924.0,1923.9,1.3949]
[1742092036305,1.43009788,1924.0,1923.9,2.43443]
[1742092037612,0.00779788,1924.0,1923.9,2.43443]
[1742092037816,0.00779788,1924.0,1923.9,5.64223]
[1742092038411,1.05919212,1924.3,1924.2,1.03937]
[1742092039016,1.416,1924.4,1924.3,1.03931]
[1742092039507,1.416,1924.4,1924.2,1.3814]
[1742092039812,1.75241,1924.3,1924.2,1.3814]
[1742092040215,3.12211,1924.3,1924.2,2.42077]
[1742092040508,3.12211,1924.3,1924.2,1.3814]
[1742092041012,3.12215,1924.3,1924.1,1.0394]
[1742092041205,3.12215,1924.3,1924.1,2.4208]
[1742092041206,2.0681,1924.2,1924.1,2.4208]
[1742092041606,3.10747,1924.2,1924.1,1.3814]
[1742092041806,2.0681,1924.2,1924.1,2.42082]
[1742092042006,3.10747,1924.2,1924.1,2.42082]
[1742092042710,3.10747,1924.2,1924.1,1.3814]
[1742092042917,3.10747,1924.2,1924.1,2.42082]
[1742092043304,2.0681,1924.2,1924.1,2.42082]
[1742092043616,1.3697,1924.2,1924.1,2.42082]
[1742092044310,3.2078,1924.4,1924.3,1.03931]
[1742092044501,4.529,1924.4,1924.3,1.03931]
[1742092044905,4.529,1924.4,1924.3,1.72071]
[1742092045614,4.529,1924.4,1924.3,0.6814]
[1742092045816,4.529,1924.4,1924.2,1.3545]
[1742092046016,1.427,1924.3,1924.2,2.39385]
[1742092046514,2.46631,1924.3,1924.1,1.72078]
[1742092046708,2.36267,1924.2,1924.1,1.03942]
[1742092046909,3.78967,1924.2,1924.0,3.11993]
[1742092047216,1.427,1924.1,1924.0,3.11993]
[1742092047417,2.46642,1924.1,1923.9,4.92869]
[1742092047609,2.46642,1924.1,1924.0,1.03948]
[1742092047810,1.03942,1924.1,1924.0,1.03948]
[1742092048010,1.3233,1924.2,1924.0,1.03948]
[1742092048211,1.3233,1924.2,1924.1,1.03942]
[1742092048413,2.36267,1924.2,1924.1,1.03942]
[1742092051520,5.57047,1924.2,1924.1,1.03942]
[1742092052017,4.5311,1924.2,1924.1,1.03942]
[1742092053115,5.57047,1924.2,1924.1,1.03942]
[1742092054719,1.03944,1924.1,1924.0,1.03944]
[1742092054920,5.57052,1924.2,1924.1,1.03942]
[1742092055623,1.03948,1924.1,1924.0,1.03946]
[1742092059026,7.25862322,1924.2,1923.9,0.6814]
[1742092059426,1.03944,1924.1,1924.0,1.03945]
[1742092060624,9.85710322,1924.2,1923.7,0.667]
[1742092060926,1.03958,1923.8,1923.7,2.36932]
[1742092061126,1.03958,1923.8,1923.7,1.3297]
[1742092061425,1.03964,1923.7,1923.6,1.03966]
[1742092062427,1.3295,1923.8,1923.5,1.3382]
[1742092062428,1.03969,1923.6,1923.5,2.37791]
[1742092062921,1.03969,1923.6,1923.5,1.3382]
[1742092063419,1.03969,1923.6,1923.5,2.37795]
[1742092064828,1.03969,1923.6,1923.5,3.78925]
[1742092068523,2.43369,1923.6,1923.5,3.78925]
[1742092072331,1.394,1923.6,1923.5,3.78925]
[1742092072526,2.43369,1923.6,1923.5,3.78925]
[1742092073933,2.43369,1923.6,1923.5,2.7495]
[1742092077726,2.43369,1923.6,1923.5,3.78925]
[1742092077922,1.394,1923.6,1923.5,3.78925]
[1742092080131,2.43369,1923.6,1923.5,3.78925]
[1742092080333,1.394,1923.6,1923.5,3.78925]
[1742092082441,2.43369,1923.6,1923.5,3.78925]
[1742092082739,1.394,1923.6,1923.5,3.78925]
[1742092083335,1.06201354,1923.7,1923.6,1.03969]
[1742092083540,1.06201354,1923.7,1923.6,2.40099]
[1742092083842,1.4198,1924.0,1923.7,1.03964]
[1742092084045,1.4198,1924.0,1923.8,1.3613]
[1742092084346,1.06201354,1924.1,1924.0,1.03948]
[1742092084535,2.49361354,1924.1,1924.0,1.03948]
[1742092084735,2.49361354,1924.1,1924.0,2.48988]
[1742092084941,1.4316,1924.1,1924.0,2.48988]
[1742092085947,3.4063887,1924.3,1924.1,1.03942]
[1742092086244,1.4316,1924.2,1924.1,1.75812]
[1742092087238,7.63189224,1924.4,1924.3,1.03931]
[1742092087239,4.26981354,1924.4,1924.3,1.03931]
[1742092087645,3.2078,1924.4,1924.3,1.03931]
[1742092089145,3.2078,1924.4,1924.3,4.44331]
[1742092089346,0.00779788,1924.5,1924.4,1.03926]
[1742092089546,0.00779788,1924.5,1924.4,1.70416]
[1742092090143,0.00779788,1924.5,1924.4,0.6649]
[1742092090444,1.43729788,1924.5,1924.4,1.70416]
[1742092090644,0.00779788,1924.5,1924.4,1.70416]
[1742092092746,0.00779788,1924.5,1924.4,2.40026]
[1742092098650,0.00779788,1924.5,1924.1,3.2078]
[1742092098849,3.21559788,1924.5,1924.1,3.2078]
[1742092099050,1.3987,1924.4,1924.3,1.03928]
[1742092099249,2.1226,1924.4,1924.3,1.03928]
[1742092100846,1.3987,1924.4,1924.3,1.03928]
[1742092101847,1.3987,1924.4,1924.3,1.69848]
[1742092103557,1.3987,1924.4,1924.1,3.2078]
[1742092103860,1.03944,1924.1,1923.9,1.0395]
[1742092104058,1.4276,1924.0,1923.9,1.0395]
[1742092104659,2.1219,1924.0,1923.9,1.0395]
[1742092106073,3.16138,1924.0,1923.8,2.37355]
[1742092106279,2.1043,1923.9,1923.8,2.37355]
[1742092109768,3.2078,1924.2,1923.8,1.334]
[1742092109974,1.3188,1924.3,1924.2,1.03931]
[1742092112380,1.3188,1924.3,1924.1,1.389]
[1742092112682,0.7157,1924.2,1923.9,3.2078]
[1742092112876,1.3767,1924.1,1924.0,2.49078]
[1742092113376,2.0741,1924.1,1924.0,1.03948]
[1742092113974,2.0741,1924.1,1923.9,1.4513]
[1742092114181,1.3767,1924.0,1923.9,2.49083]
[1742092116985,2.41618,1924.0,1923.8,4.44256]
[1742092117178,5.62398,1924.0,1923.6,4.7751]
[1742092117484,1.4262,1923.9,1923.8,1.03958]
[1742092120689,2.46576,1923.9,1923.7,1.03964]
[1742092120884,2.42258,1923.8,1923.7,1.3625]
[1742092121188,3.86518,1923.8,1923.6,1.03965]
[1742092121386,1.4426,1923.7,1923.6,2.44435]
[1742092121985,2.48224,1923.7,1923.6,2.44435]
[1742092122186,1.4426,1923.7,1923.6,2.44435]
[1742092123989,4.24729,1924.0,1923.8,1.03958]
[1742092124189,4.24729,1924.0,1923.9,1.03953]
[1742092124391,3.8639,1924.0,1923.9,1.03953]
[1742092124790,4.90338,1924.0,1923.8,1.03955]
[1742092124992,0.6706,1923.9,1923.8,1.03955]
[1742092125391,2.1033,1923.9,1923.8,2.36635]
[1742092127791,3.14283,1923.9,1923.8,2.36635]
[1742092128595,3.14283,1923.9,1923.8,1.3268]
[1742092128796,3.14283,1923.9,1923.8,2.36638]
[1742092128989,2.1033,1923.9,1923.8,2.36638]
[1742092129389,3.14283,1923.9,1923.8,2.36638]
[1742092130086,2.1033,1923.9,1923.8,2.36638]
[1742092130487,3.14283,1923.9,1923.8,1.3268]
[1742092130886,1.03958,1923.8,1923.7,0.6544]
[1742092131097,2.35088,1923.8,1923.7,0.6544]
[1742092131493,2.35088,1923.8,1923.7,1.03964]
[1742092131796,1.03964,1923.7,1923.6,1.3341]
[1742092131997,3.05104,1923.7,1923.6,1.3341]
[1742092132899,3.05104,1923.7,1923.6,2.37377]
[1742092134099,3.05104,1923.7,1923.6,1.3341]
[1742092134295,2.0114,1923.7,1923.6,2.37379]
[1742092137198,1.3113,1923.7,1923.6,2.37379]
[1742092137395,1.03955,1923.9,1923.8,1.03958]
[1742092138001,1.03955,1923.9,1923.8,1.71478]
[1742092138504,1.03958,1923.8,1923.7,0.7061]
[1742092139100,1.03958,1923.8,1923.7,3.10654]
[1742092140104,2.38018,1923.9,1923.8,1.03958]
[1742092140298,2.38018,1923.9,1923.8,1.4028]
[1742092140498,2.38018,1923.9,1923.8,2.44238]
[1742092141004,2.38018,1923.9,1923.8,1.4028]
[1742092141306,2.38018,1923.9,1923.8,2.44238]
[1742092142502,2.38018,1923.9,1923.8,1.4028]
[1742092142899,2.38018,1923.9,1923.8,2.44238]
[1742092146804,1.03964,1923.7,1923.6,0.6752]
[1742092147408,1.03964,1923.7,1923.6,2.1276]
[1742092147707,2.35222,1923.8,1923.6,2.1276]
[1742092148011,2.35222,1923.8,1923.7,1.4524]
[1742092148306,1.03962,1923.8,1923.7,1.4524]
[1742092148810,1.03962,1923.8,1923.7,2.49204]
[1742092158907,1.03962,1923.8,1923.7,1.4524]
[1742092159610,1.03969,1923.6,1923.5,1.0397]
[1742092161204,4.09482479,1923.7,1923.6,1.03969]
[1742092161515,3.48588045,1923.7,1923.6,1.03969]
[1742092162015,2.42456,1923.7,1923.6,2.48749]
[1742092162611,2.42456,1923.7,1923.6,1.4478]
[1742092162815,2.42456,1923.7,1923.6,2.48749]
[1742092164016,2.42456,1923.7,1923.6,1.4478]
[1742092164219,6.13358524,1923.8,1923.6,1.4478]
[1742092164413,1.06132045,1923.8,1923.7,1.03964]
[1742092164823,5.57821264,1923.9,1923.8,1.03958]
[1742092165020,4.16511264,1923.9,1923.8,1.69548]
[1742092165313,3.2078,1923.9,1923.8,1.69548]
[1742092165518,3.2078,1924.2,1924.1,1.03942]
[1742092168217,3.2078,1924.2,1924.1,2.39182]
[1742092169216,1.06132045,1924.4,1924.3,1.03931]
[1742092169618,3.21559788,1924.5,1924.4,1.03926]
[1742092169814,5.65854788,1924.5,1924.3,3.18987]
[1742092170019,1.4037,1924.4,1924.3,3.18987]
[1742092170217,1.4037,1924.4,1924.3,1.75337]
[1742092173427,3.21559788,1924.5,1924.4,1.03926]
[1742092174329,0.00779788,1924.5,1924.4,1.03926]
[1742092176329,0.00779788,1924.5,1924.4,4.24706]
[1742092180626,0.00779788,1924.5,1924.4,1.03926]
[1742092182232,1.42419788,1924.5,1924.4,1.03926]
[1742092184933,1.42419788,1924.5,1924.4,2.41466]
[1742092188135,0.00779788,1924.5,1924.4,2.41466]
[1742092203743,1.38519788,1924.5,1924.4,2.41466]
[1742092204540,2.04039788,1924.5,1924.4,2.41466]
[1742092205336,1.38519788,1924.5,1924.4,2.41466]
[1742092207549,1.38519788,1924.5,1924.4,1.03926]
[1742092208849,1.38519788,1924.5,1924.4,2.46246]
[1742092216552,1.38519788,1924.5,1924.3,3.2078]
[1742092216742,0.7216,1924.4,1924.3,4.24711]
[1742092217144,2.1376,1924.4,1924.3,4.24711]
[1742092219346,3.17686,1924.4,1924.3,4.24711]
[1742092219546,2.1376,1924.4,1924.3,4.24711]
[1742092219760,3.17686,1924.4,1924.2,1.03933]
[1742092219952,2.0611,1924.3,1924.2,1.03933]
[1742092220748,3.10041,1924.3,1924.2,1.03933]
[1742092221051,2.0611,1924.3,1924.2,1.03933]
[1742092221556,3.10041,1924.3,1924.2,1.03933]
[1742092221753,2.0611,1924.3,1924.2,1.03933]
[1742092224859,3.10041,1924.3,1924.1,2.46481]
[1742092225055,1.3131,1924.2,1924.1,2.46481]
[1742092225257,2.35247,1924.2,1924.0,1.03946]
[1742092225457,0.6676,1924.1,1923.9,4.24729]
[1742092225652,1.9807,1924.1,1923.9,5.67698]
[1742092225959,0.6742,1924.0,1923.9,5.67698]
[1742092226154,1.9873,1924.0,1923.9,5.67698]
[1742092226759,1.03954,1923.9,1923.7,4.2474]
[1742092227054,1.03954,1923.9,1923.7,1.0396]
[1742092227055,1.70718,1923.8,1923.7,1.0396]
[1742092227253,1.70718,1923.8,1923.7,1.03964]
[1742092227254,0.6676,1923.8,1923.7,1.03964]
[1742092227655,1.9807,1923.8,1923.7,1.03964]
[1742092227850,1.9807,1923.8,1923.5,2.1117]
[1742092227851,1.9807,1923.8,1923.6,2.44965]
[1742092228054,2.1181,1923.7,1923.6,2.44965]
[1742092229257,2.1181,1923.7,1923.6,1.41]
[1742092229461,2.1181,1923.7,1923.5,1.7217]
[1742092229462,3.15774,1923.7,1923.5,1.7217]
[1742092229772,1.4133,1923.6,1923.5,3.1317]
[1742092230060,1.4133,1923.6,1923.5,2.4497]
[1742092230458,2.45299,1923.6,1923.5,2.4497]
[1742092230659,1.4133,1923.6,1923.4,1.03976]
[1742092230860,1.3684,1923.5,1923.4,2.47506]
[1742092232056,4.91503,1923.8,1923.7,1.03964]
[1742092232057,3.8754,1923.8,1923.7,1.03964]
[1742092232370,1.06021977,1923.9,1923.8,1.03958]
[1742092232573,3.2078,1924.0,1923.9,1.03953]
[1742092233257,4.5762,1924.0,1923.9,1.03953]
[1742092235956,1.3684,1924.0,1923.9,1.03953]
[1742092236162,5.67001977,1924.2,1924.1,1.03942]
[1742092236366,3.2078,1924.2,1924.1,1.03942]
[1742092237168,3.2078,1924.2,1924.1,1.70922]
[1742092237367,3.2078,1924.2,1924.1,3.10332]
[1742092239470,2.46033,1924.3,1924.1,3.1033]
[1742092239864,1.3803,1924.2,1924.1,2.4335]
[1742092240573,2.41967,1924.2,1924.1,1.3941]
[1742092240770,1.3803,1924.2,1924.1,1.3941]
[1742092241164,1.3803,1924.2,1924.1,2.43352]
[1742092242570,1.3803,1924.2,1924.1,1.3941]
[1742092242775,1.3803,1924.2,1924.1,2.43352]
[1742092242972,2.41967,1924.2,1924.1,2.43352]
[1742092243274,2.41967,1924.2,1924.1,1.03942]
[1742092243862,1.3803,1924.2,1924.1,1.03942]
[1742092244268,2.0519,1924.2,1924.1,2.48532]
[1742092249079,2.0519,1924.2,1924.0,1.03945]
[1742092249080,3.09127,1924.2,1924.0,1.03945]
[1742092249389,0.6716,1924.2,1924.1,1.03942]
[1742092251593,3.2078,1924.3,1924.2,1.03937]
[1742092252788,4.24714,1924.3,1924.1,2.34951]
[1742092253297,1.03937,1924.2,1924.1,1.3101]
[1742092253589,1.03942,1924.1,1924.0,1.03943]
[1742092253893,1.03942,1924.1,1923.9,1.0395]
[1742092254190,0.6911,1924.0,1923.9,1.0395]
[1742092256287,1.73058,1924.0,1923.8,2.34965]
[1742092256793,1.73058,1924.0,1923.8,1.3101]
[1742092257492,1.73058,1924.0,1923.9,1.03953]
[1742092257692,1.73058,1924.0,1923.8,2.34965]
[1742092258593,0.6911,1924.0,1923.9,1.03953]
[1742092258795,5.22438741,1924.3,1923.9,1.3419]
[1742092258991,1.71959,1924.2,1924.0,1.03943]
[1742092259194,1.71959,1924.2,1924.1,2.38132]
[1742092259493,2.40939,1924.2,1924.1,2.38132]
[1742092259795,2.40939,1924.2,1924.1,1.3419]
[1742092260597,1.03942,1924.1,1924.0,1.03944]
[1742092260796,2.40941,1924.2,1924.1,1.03942]
[1742092261484,2.4094,1924.2,1924.0,2.38135]
[1742092261685,2.4094,1924.2,1924.0,1.3419]
[1742092261995,2.4094,1924.2,1924.0,2.38134]
[1742092262196,2.40941,1924.2,1924.0,2.38134]
[1742092262694,2.40941,1924.2,1924.0,2.38133]
[1742092262896,2.40941,1924.2,1924.0,1.3419]
[1742092263399,2.40941,1924.2,1924.1,1.03942]
[1742092264098,2.40941,1924.2,1924.0,2.38133]
[1742092264300,2.40941,1924.2,1924.0,1.3419]
[1742092264492,2.40941,1924.2,1924.1,1.3839]
[1742092264700,4.26818324,1924.3,1924.2,1.03937]
[1742092264997,3.2078,1924.3,1924.2,2.38217]
[1742092266897,2.42998324,1924.4,1924.3,1.03931]
[1742092267102,2.42998324,1924.4,1924.3,2.42321]
[1742092267303,1.06038324,1924.4,1924.3,2.42321]
[1742092267501,3.21559788,1924.5,1924.4,1.03926]
[1742092267803,3.21559788,1924.5,1924.4,2.46576]
[1742092269303,1.06038324,1924.9,1924.4,2.46576]
[1742092269501,1.06174037,1925.3,1924.8,3.2078]
[1742092269703,6.62216037,1925.3,1924.9,5.5421]
[1742092269897,6.27124037,1925.3,1925.0,1.4265]
[1742092270099,1.3138,1925.2,1924.6,3.2078]
[1742092270304,1.03902,1924.9,1924.7,2.12]
[1742092270504,1.03897,1925.0,1924.8,1.4435]
[1742092270712,4.92847438,1925.1,1924.8,2.48253]
[1742092271007,3.88956438,1925.1,1924.8,1.4435]
[1742092271212,4.24679,1924.9,1924.7,0.00779788]
[1742092271506,0.6561,1924.8,1924.7,0.00779788]
[1742092271705,0.6561,1924.8,1924.7,2.49039788]
[1742092271907,3.2078,1924.9,1924.8,1.03904]
[1742092272099,3.2078,1924.9,1924.8,2.48254]
[1742092272304,3.2078,1924.9,1924.8,1.4435]
[1742092272502,1.03904,1924.8,1924.7,0.00779788]
[1742092272910,1.71564,1924.8,1924.7,0.00779788]
[1742092273498,0.6766,1924.8,1924.7,1.04689788]
[1742092274306,3.2078,1924.9,1924.8,1.03904]
[1742092274502,3.2078,1924.9,1924.8,2.40304]
[1742092275010,3.2078,1924.9,1924.8,1.364]
[1742092275223,3.2078,1924.9,1924.8,2.40304]
[1742092275509,3.2078,1924.9,1924.7,0.00779788]
[1742092275714,1.03904,1924.8,1924.7,0.00779788]
[1742092275897,3.2078,1924.9,1924.7,0.00779788]
[1742092276102,4.24681,1924.9,1924.7,0.00779788]
[1742092276302,4.24681,1924.9,1924.7,1.04685788]
[1742092276705,3.2078,1924.9,1924.8,1.03904]
[1742092277004,1.341,1925.0,1924.9,1.03899]
[1742092277507,3.21296438,1925.1,1925.0,1.03894]
[1742092277704,3.92426438,1925.1,1925.0,1.03894]
[1742092278213,4.96314438,1925.1,1924.9,2.39015]
[1742092278711,4.96314438,1925.1,1924.9,1.03895]
[1742092279014,4.96318438,1925.1,1924.9,1.03895]
[1742092279206,3.92426438,1925.1,1925.0,2.39014]
[1742092279616,3.21296438,1925.1,1925.0,2.39014]
[1742092281705,0.00516438,1925.1,1925.0,2.39014]
[1742092282106,3.2078,1925.4,1925.3,1.03877]
[1742092282709,3.2078,1925.4,1925.3,3.08987]
[1742092283210,3.2078,1925.6,1925.5,1.03867]
[1742092283907,7.63649962,1926.1,1925.7,1.03852]
[1742092284110,1.03841,1926.0,1925.8,3.0896]
[1742092284301,1.03841,1926.0,1925.9,1.3874]
[1742092284908,2.43911,1926.0,1925.9,1.3874]
[1742092285311,1.4007,1926.0,1925.9,1.3874]
[1742092285611,1.4007,1926.0,1925.9,2.42585]
[1742092286613,3.2078,1926.1,1925.9,1.3874]
[1742092286811,3.2078,1926.1,1926.0,1.0384]
[1742092287314,4.5254,1926.1,1926.0,1.0384]
[1742092287515,3.2078,1926.1,1926.0,1.0384]
[1742092288522,1.0385,1925.8,1925.7,0.00779788]
[1742092289018,1.03869,1925.5,1925.0,3.25732]
[1742092289212,3.2078,1925.6,1925.3,1.03875]
[1742092289408,1.345,1925.4,1925.3,1.03875]
[1742092289721,3.2078,1925.8,1925.7,1.03856]
[1742092291021,4.5528,1925.8,1925.7,1.03856]
[1742092291716,3.2078,1925.8,1925.7,1.03856]
[1742092292613,3.2078,1925.8,1925.6,1.04638788]
[1742092292819,1.4511,1925.7,1925.6,1.04638788]
[1742092294123,0.71519788,1925.9,1925.6,0.00779788]
[1742092294317,1.4511,1925.8,1925.7,1.03856]
[1742092294729,1.4511,1925.8,1925.6,1.04636788]
[1742092295027,1.03856,1925.7,1925.6,0.00779788]
[1742092295422,2.48963,1925.8,1925.6,0.00779788]
[1742092296130,1.03856,1925.7,1925.6,0.00779788]
[1742092296332,2.43726,1925.7,1925.6,0.00779788]
[1742092296517,1.3987,1925.7,1925.6,0.00779788]
[1742092296830,2.43726,1925.7,1925.6,0.00779788]
[1742092297329,1.3987,1925.7,1925.6,1.04640788]
[1742092297525,2.43726,1925.7,1925.6,0.00779788]
[1742092297828,5.64506,1925.7,1925.6,0.00779788]
[1742092298822,5.64506,1925.7,1925.6,1.04640788]
[1742092299017,4.6065,1925.7,1925.6,0.00779788]
[1742092299327,5.64506,1925.7,1925.6,1.04640788]
[1742092299530,5.64506,1925.7,1925.6,0.00779788]
[1742092299825,9.07506,1925.7,1925.6,0.00779788]
[1742092300525,10.10841025,1925.7,1925.6,0.00779788]
[1742092300725,11.06119073,1925.7,1925.6,0.00779788]
[1742092301821,1.03876,1925.4,1925.2,3.2078]
[1742092302014,1.9938,1925.3,1925.2,3.2078]
[1742092302214,1.9938,1925.3,1925.2,4.24663]
[1742092302630,3.03257,1925.3,1925.2,3.2078]
[1742092302929,1.03883,1925.2,1925.1,1.03885]
[1742092303231,1.3102,1925.2,1925.1,1.04664788]
[1742092305226,2.34903,1925.2,1925.1,1.04664788]
[1742092305527,1.3102,1925.2,1925.1,1.04664788]
[1742092306322,1.3102,1925.2,1925.1,0.00779788]
[1742092306523,2.34903,1925.2,1925.1,0.00779788]
[1742092307228,1.3102,1925.2,1925.1,1.04667788]
[1742092307428,1.3102,1925.2,1925.1,2.44637788]
[1742092307731,2.34903,1925.2,1925.1,1.40749788]
[1742092310431,1.3102,1925.2,1925.1,1.40749788]
[1742092310628,1.3102,1925.2,1925.1,2.44637788]
[1742092311030,1.03876,1925.4,1925.2,1.03881]
[1742092311230,2.44766,1925.4,1925.3,1.03877]
[1742092311431,1.4089,1925.4,1925.3,2.39447]
[1742092312038,3.2078,1925.5,1925.4,1.03872]
[1742092312336,4.6167,1925.5,1925.4,2.47012]
[1742092312736,5.65537,1925.5,1925.4,1.4314]
[1742092313132,4.6167,1925.5,1925.3,1.3537]
[1742092313326,3.10872,1925.4,1925.3,1.3537]
[1742092313530,1.03877,1925.3,1925.1,5.85824788]
[1742092313838,2.059,1925.3,1925.2,1.03883]